Cogmind - Beta 13 @@@ ROGUE MODE // 2024.04.24 @ 23:25:41 Player: Wyvric Result: Destroyed by G-67 Veteran with Plasma Rifle Performance ------------- Evolutions (5) 2500 Regions Visited (19) 3800 Robots Destroyed (92) 460 Value Destroyed (5611) 5611 Prototype IDs (31) 620 Alien Tech Used (0) 0 Bonus (8610) 8610 TOTAL SCORE: 21601 Bonus ------- Triggered High Security 500 High Alert Combat Kills 715 Follower Combat Kills 3883 Entered Garrisons 1000 Used RIF Installer 2500 Network Hubs Disabled 400 Aligned with FarCom 300 Built Enhanced Grunts 300 A7 Reached Mainframe 300 Met R17 at Cetus 500 Friendly Fire -1788 Cogmind --------- Core Integrity 0/1000 Matter 153/300 Energy 3/100 System Corruption 8% Temperature Warm (122) Movement Core (50) Location -5/Hub_04(d) Parts ------- > --- POWER (1) -------- (None) > --- PROPULSION (4) --- (None) > --- UTILITY (10) ----- Machine Analyzer > --- WEAPON (2) ------- (None) > --- INVENTORY (5) ---- Advanced Sensor Array Relay Coupler [Brawler] (29) Relay Coupler [Duelist] (34) Relay Coupler [Hunter] (25) Quantum Rifle Peak State ------------ > --- POWER ------------ Quantum Reactor > --- PROPULSION ------- Centrium Heavy Treads Centrium Heavy Treads > --- UTILITY ---------- High-capacity Storage Unit Machine Analyzer Active Sensor Suite Advanced Hacking Suite Relay Coupler [NC] Relay Coupler [Swarmer] Relay Coupler [Specialist] Relay Coupler [Hunter] > --- WEAPON ----------- Variable Charge Gun Longsword +1 > --- INVENTORY -------- Armored Treads Improved Medium Treads Armored Medium Treads Huge Storage Unit Advanced Sensor Array Advanced Signal Interpreter Centrium Medium Armor Plating Improved Powered Armor Improved Powered Armor Relay Coupler [Swarmer] Relay Coupler [Brawler] Relay Coupler [Duelist] Relay Coupler [Hunter] Chronowheel Quantum Rifle KE Penetrator Heavy Missile Launcher Remote Datajack Remote Datajack Improved Plasma Cutter [Rating: 120] Favorites ----------- Power Reinforced Deuterium Engine Engine Reinforced Deuterium Engine Power Core Light Nuclear Core Reactor Light Antimatter Reactor Propulsion Armored Wheel Treads Light Treads Leg Aluminum Leg Wheel Armored Wheel Utility High-capacity Storage Unit Device Active Sensor Suite Storage High-capacity Storage Unit Processor Advanced Visual Processing Unit Hackware Relay Coupler [Sentry] Protection Improved Heavy Armor Plating Weapon Longsword +1 Energy Gun Beamcaster Energy Cannon Beam Cannon Ballistic Gun KE Penetrator Ballistic Cannon Mass Driver Launcher Mini Grenade Launcher Special Weapon Remote Datajack Slashing Weapon Longsword +1 Piercing Weapon Lance Build | -11 -10 -10 -10 -9 -8 -8 -8 -8 -7 -7 -7 -7 -6 -6 -5 -5 -5 -5 -5 ------- Run | Yrd Mat Min Exi Min Mat Gar Mat Gar Fac Gar Fac Gar Fac Gar Fac Ext Cet Arc Hub Slots Evolved 10 | . . . . . 4 . . . 2 . . . 2 . 2 . . . . Power . | . . . . . . . . . . . . . . . . . . . . Propulsion 2 | . . . . . 2 . . . . . . . . . . . . . . Utility 8 | . . . . . 2 . . . 2 . . . 2 . 2 . . . . Weapon . | . . . . . . . . . . . . . . . . . . . . Parts Attached 243 | 7 12 6 3 6 6 21 1 57 6 22 15 13 7 8 2 28 3 2 18 Power 16 | 1 1 2 . . . 1 . 2 . 1 2 1 . 1 . 3 1 . . Engine 12 | 1 1 1 . . . 1 . 2 . 1 1 . . 1 . 3 . . . Core 2 | . . 1 . . . . . . . . 1 . . . . . . . . Reactor 2 | . . . . . . . . . . . . 1 . . . . 1 . . Propulsion 44 | 2 2 . . 2 3 7 1 9 . 1 1 1 1 3 . 7 2 . 2 Treads 21 | . 2 . . . . 4 1 2 . . . . . 2 . 6 2 . 2 Leg 3 | 2 . . . . . . . . . . . . . 1 . . . . . Wheel 20 | . . . . 2 3 3 . 7 . 1 1 1 1 . . 1 . . . Hover . | . . . . . . . . . . . . . . . . . . . . Flight . | . . . . . . . . . . . . . . . . . . . . Utility 95 | 1 5 4 1 2 3 6 . 19 4 11 9 4 6 3 2 7 . . 8 Device 14 | . 1 2 . . 2 2 . 1 1 2 . . . . . 2 . . 1 Storage 6 | 1 1 . 1 . . . . 2 . . . . . . . . . . 1 Processor 5 | . 2 . . . 1 . . . . . 1 . . . . . . . 1 Hackware 32 | . . . . . . . . 7 1 7 4 2 4 2 1 2 . . 2 Protection 38 | . 1 2 . 2 . 4 . 9 2 2 4 2 2 1 1 3 . . 3 Artifact . | . . . . . . . . . . . . . . . . . . . . Weapon 88 | 3 4 . 2 2 . 7 . 27 2 9 3 7 . 1 . 11 . 2 8 Energy Gun 11 | 3 2 . 2 1 . 1 . . . . . . . . . . . . 2 Energy Cannon 2 | . 2 . . . . . . . . . . . . . . . . . . Ballistic Gun 9 | . . . . . . . . 5 . 1 . . . . . 2 . 1 . Ballistic Cannon 11 | . . . . . . 2 . 5 . 3 1 . . . . . . . . Launcher 11 | . . . . . . 1 . 1 . . 1 3 . . . 1 . . 4 Special Weapon 29 | . . . . . . . . 9 1 2 1 4 . 1 . 8 . 1 2 Impact Weapon . | . . . . . . . . . . . . . . . . . . . . Slashing Weapon 14 | . . . . 1 . 2 . 7 1 3 . . . . . . . . . Piercing Weapon 1 | . . . . . . 1 . . . . . . . . . . . . . Special Melee Weapon . | . . . . . . . . . . . . . . . . . . . . Unidentified Prototypes 3 | . . . . . . . . . . . . . . . . 1 1 . 1 Parts Lost 23 | . 2 . . . . 4 . 2 . 1 . 1 . 1 . . . . 12 Power 1 | . . . . . . 1 . . . . . . . . . . . . . Propulsion 7 | . . . . . . 2 . 1 . . . . . 1 . . . . 3 Utility 11 | . . . . . . 1 . . . 1 . 1 . . . . . . 8 Weapon 4 | . 2 . . . . . . 1 . . . . . . . . . . 1 Highest Loss Streak 12 | . 2 . . . . 3 . 2 . 1 . 1 . 1 . . . . 12 To Critical Strikes . | . . . . . . . . . . . . . . . . . . . . Average Slot Usage (%) 92 | . 96 100 100 100 90 96 90 94 90 91 91 91 86 91 89 86 80 76 77 Engine 4 | . 14 6 . . . 3 9 9 7 7 6 1 . 3 5 5 . . . Core 2 | . . 7 14 14 9 5 . . . . . . . . . . . . . Reactor 1 | . . . . . . . . . . . . 5 6 2 . . 4 5 4 Treads 12 | . 2 28 28 21 . 11 18 16 . . . . . 10 11 15 15 11 10 Wheel 13 | . . . . 6 33 24 18 19 30 30 23 23 20 14 11 2 . . . Device 3 | . 3 5 14 5 7 6 . . 2 1 . . . . . 2 5 5 4 Storage 8 | . 14 14 14 14 9 9 9 9 7 7 7 7 6 6 5 5 5 5 5 Processor 1 | . 7 . . . 4 9 9 . . . . . . . . . . . 2 Hackware 18 | . . . . . . . . 12 11 19 31 32 26 33 34 36 35 35 32 Protection 6 | . 2 8 . 8 9 8 9 9 13 8 5 4 12 6 7 4 . . 2 Energy Gun 2 | . 25 . 9 27 18 6 . . . . . . . . . . . . . Energy Cannon 4 | . 1 28 18 . . . . . . . . . . . . . . . . Ballistic Cannon 1 | . . . . . . 2 9 7 4 2 . . . . . . . . . Special Weapon 3 | . . . . . . . . 2 4 5 6 5 6 6 5 3 5 3 2 Slashing Weapon 4 | . . . . . . 4 . 3 5 5 7 7 6 6 5 5 5 5 5 Naked Turns . | . . . . . . . . . . . . . . . . . . . . Heaviest Build 101 | 12 34 34 34 36 37 57 57 92 100 100 76 78 93 73 83 90 70 72 101 Greatest Support 160 | 20 40 40 40 40 40 46 26 62 48 48 52 52 52 50 22 128 160 160 160 Greatest Overweight (x) 6 | 2 1 . . 1 . 2 2 6 2 2 1 1 1 3 3 3 1 . . Average Overweight (x) . | . . . . . . 1 2 1 1 1 . 1 1 2 3 . . . . Largest Inventory Capacity 25 | 8 15 15 15 15 15 15 15 20 20 20 20 20 20 20 20 20 20 20 25 Average Capacity 17 | 7 10 15 15 15 15 15 15 17 20 20 20 20 20 20 20 20 20 20 20 Most Carried 20 | 6 15 15 15 15 15 15 15 20 20 20 20 20 20 20 20 20 20 20 20 Average Carried 17 | 3 9 14 14 14 13 14 14 16 19 19 19 19 19 19 18 19 19 19 19 Final Capacity 20 | 8 15 15 15 15 15 15 15 20 20 20 20 20 20 20 20 20 20 20 5 Final Carried 20 | 6 15 15 15 15 15 15 15 20 20 20 20 19 20 20 19 20 20 20 5 Class Distribution -------------------- 39% | Bothacker-Mutant 23% | Mutant 17% | Botlord-Mutant 13% | Botlord-Assassin 5% | Scavenger-Mutant Dominant Class ---------------- Mutant | -10/Materials Mutant | -10/Mines Mutant | -10/Exiles Mutant | -9/Mines Scavenger-Mutant | -8/Materials Scavenger-Mutant | -8/Garrison Bothacker-Mutant | -8/Materials Bothacker-Mutant | -8/Garrison Bothacker-Mutant | -7/Factory Bothacker-Mutant | -7/Garrison Bothacker-Mutant | -7/Factory Bothacker-Mutant | -7/Garrison Botlord-Mutant | -6/Factory Botlord-Mutant | -6/Garrison Botlord-Mutant | -5/Factory Botlord-Assassin | -5/Extension Botlord-Assassin | -5/Cetus Botlord-Assassin | -5/Archives Botlord-Assassin | -5/Hub_04(d) Resources | -11 -10 -10 -10 -9 -8 -8 -8 -8 -7 -7 -7 -7 -6 -6 -5 -5 -5 -5 -5 ----------- Run | Yrd Mat Min Exi Min Mat Gar Mat Gar Fac Gar Fac Gar Fac Gar Fac Ext Cet Arc Hub Matter Collected 4640 | 255 91 151 . 90 . 363 . 1111 30 517 317 251 284 252 40 501 40 78 269 Remotely . | . . . . . . . . . . . . . . . . . . . . Salvage Created 3867 | . 167 232 . 150 . 555 . 1116 . 247 177 446 97 110 . 241 . . 329 Parts 168 | . 14 11 . 13 . 28 . 40 . 8 7 13 8 7 . 7 . . 12 Haulers Intercepted 1 | . 1 . . . . . . . . . . . . . . . . . . Recyclers Shooed . | . . . . . . . . . . . . . . . . . . . . Parts Field Recycled 10 | . . . . . . 10 . . . . . . . . . . . . . Retrieved Matter 111 | . . . . . . 111 . . . . . . . . . . . . . Parts Self-Destructed . | . . . . . . . . . . . . . . . . . . . . Prevented . | . . . . . . . . . . . . . . . . . . . . Kills | -11 -10 -10 -10 -9 -8 -8 -8 -8 -7 -7 -7 -7 -6 -6 -5 -5 -5 -5 -5 ------- Run | Yrd Mat Min Exi Min Mat Gar Mat Gar Fac Gar Fac Gar Fac Gar Fac Ext Cet Arc Hub Combat Hostiles Destroyed 75 | . 2 6 . 4 . 17 . 16 . 5 2 15 1 2 . 2 . . 3 Melee 24 | . . . . 1 . 5 . 4 . 4 2 3 1 2 . 1 . . 1 Guns 10 | . 2 . . 3 . 1 . 3 . . . . . . . 1 . . . Cannons 16 | . . 6 . . . 2 . 7 . 1 . . . . . . . . . AOE 25 | . . . . . . 9 . 2 . . . 12 . . . . . . 2 Classes Destroyed 17 | . 3 1 . 2 . 3 . 3 . 1 2 . . . . . . . 2 Worker 3 | . . . . . . . . . . . 1 . 1 . . . . . 1 Tunneler 1 | . . . . 1 . . . . . . . . . . . . . . . Hauler 1 | . 1 . . . . . . . . . . . . . . . . . . Recycler 2 | . . . . . . . . . . . 1 . . . . 1 . . . Operator 5 | . . . . . . . . . . . . . . . . . . . 5 Watcher 3 | . 2 . . . . . . . . . . . 1 . . . . . . Swarmer 7 | . . 3 . . . . . 1 . 1 2 . . . . . . . . Grunt 42 | . 2 3 . 3 . 9 . 5 . 3 . 14 . 1 . 2 . . . Brawler 2 | . . . . . . . . . . 2 . . . . . . . . . Duelist 5 | . . . . . . 2 . 3 . . . . . . . . . . . Protector 2 | . . . . . . . . 1 . . . . . . . . . . 1 Sentry 7 | . . . . . . 3 . 3 . . . . . 1 . . . . . Demolisher 1 | . . . . . . . . 1 . . . . . . . . . . . Programmer 6 | . . . . . . 3 . 1 . . . 1 1 . . . . . . Behemoth 1 | . . . . . . . . 1 . . . . . . . . . . . Enhanced Grunt 1 | . . . . . . . . . . . . . . . . . . . 1 Lightning 2 | . . . . . . . . . . . . . . . . . . . 2 Assembled 1 | . . . . 1 . . . . . . . . . . . . . . . Guerrilla 1 | . . . . . . . . . . . . . . . . . . . 1 Best Kill Streak 7 | . 2 3 . 3 . 3 . 4 . 1 2 7 1 1 . 2 . . 2 Combat Bots Only 7 | . 2 3 . 2 . 3 . 4 . 1 2 7 1 1 . 1 . . 2 Max Kills in Single Turn 4 | . 1 1 . 2 . 2 . 2 . 1 1 2 1 1 . 1 . . 4 Gunslinging . | . . . . . . . . . . . . . . . . . . . . Exploded 2 | . . . . . . 2 . 1 . . . 2 . . . . . . 1 Melee 1 | . . . . 1 . 1 . 1 . 1 1 1 1 1 . 1 . . 1 Uniques/NPCs Destroyed . | . . . . . . . . . . . . . . . . . . . . Combat | -11 -10 -10 -10 -9 -8 -8 -8 -8 -7 -7 -7 -7 -6 -6 -5 -5 -5 -5 -5 -------- Run | Yrd Mat Min Exi Min Mat Gar Mat Gar Fac Gar Fac Gar Fac Gar Fac Ext Cet Arc Hub Hostile Shots Fired 621 | . 21 35 . 13 . 58 . 81 . 39 19 54 6 31 . 28 . . 236 Missed 158 | . 4 8 . . . 15 . 25 . 4 9 17 1 15 . 7 . . 53 Damage Taken 9136 | . 233 261 . 145 . 756 . 843 38 666 84 728 79 152 19 601 24 77 4430 Core 1260 | . 13 21 . 11 . 46 . 48 . 51 . 50 . . . . . . 1020 Absorbed by Shields 159 | . . . . . . 112 . . . 16 . 16 . 15 . . . . . Reduced by Siege Mode 56 | . . . . . . . . . . . . . . . . . . . 56 Core Remaining (%) 89 | 100 . . . 82 . . . 82 . . . 85 . 100 . . . . . Volleys Fired 366 | . 15 18 . 5 . 40 . 68 5 37 18 25 12 23 4 48 . 12 36 Largest 2 | . 2 2 . 2 . 2 . 2 1 2 1 1 1 1 1 1 . 1 1 Hottest 225 | . 105 120 . 140 . 140 . 110 5 110 39 39 5 5 5 33 . 33 225 Shots Fired 428 | . 23 36 . 10 . 46 . 87 5 43 18 25 12 23 4 48 . 12 36 Gun 83 | . 23 . . 10 . 16 . 21 . 2 . . . . . 4 . 2 5 Cannon 95 | . . 36 . . . 8 . 38 . 13 . . . . . . . . . Launcher 60 | . . . . . . 22 . 3 . . 1 17 . . . . . . 17 Special 190 | . . . . . . . . 25 5 28 17 8 12 23 4 44 . 10 14 Kinetic 88 | . . . . . . 8 . 59 . 15 . . . . . 4 . 2 . Thermal 78 | . 11 36 . 10 . 16 . . . . . . . . . . . . 5 Explosive 59 | . . . . . . 22 . 3 . . . 17 . . . . . . 17 Electromagnetic 13 | . 12 . . . . . . . . . 1 . . . . . . . . Robot Hit Streak 18 | . 8 11 . 4 . 13 . 11 6 7 6 3 3 5 4 11 . 11 18 Robot Miss Streak 5 | . 2 2 . 3 . 2 . 4 1 4 1 1 3 5 1 2 . 2 1 Penetration Max 1 | . . . . . . . . 1 . . . . . . . . . . . Secondary Targets . | . . . . . . . . . . . . . . . . . . . . Shots Hit Robots 378 | . 18 23 . 9 . 41 . 96 4 34 16 17 10 16 3 51 . 8 32 Core Hits 179 | . 8 14 . 5 . 33 . 28 . 8 3 21 3 2 . 4 . . 50 Critical Kills 1 | . . . . . . . . 1 . . . . . . . . . . . Critical Parts Destroyed . | . . . . . . . . . . . . . . . . . . . . Critical Strikes 8 | . . . . 1 . . . 3 . 1 . . . . . 3 . . . Burn 1 | . . . . 1 . . . . . . . . . . . . . . . Destroy 1 | . . . . . . . . 1 . . . . . . . . . . . Sever 6 | . . . . . . . . 2 . 1 . . . . . 3 . . . Melee Attacks 172 | . . . . 3 . 23 . 49 1 18 11 6 6 9 1 35 . . 10 Impact . | . . . . . . . . . . . . . . . . . . . . Slashing 170 | . . . . 3 . 21 . 49 1 18 11 6 6 9 1 35 . . 10 Piercing 2 | . . . . . . 2 . . . . . . . . . . . . . Sneak Attacks 7 | . . . . . . . . . . 2 1 . 1 1 . 2 . . . Combat Hostiles 3 | . . . . . . . . . . 1 . . . 1 . 1 . . . Follow-up Attacks 1 | . . . . . . 1 . . . . . . . . . . . . . Damage Inflicted 13019 | . 253 405 . 255 . 1945 . 3606 . 603 232 1540 154 187 39 688 . 21 3091 Guns 1047 | . 253 . . 131 . 242 . 215 . 44 . . . . . 101 . 21 40 Cannons 1320 | . . 403 . . . 47 . 643 . 227 . . . . . . . . . Explosions 5294 | . . . . . . 1032 . 182 . . 27 1332 . . . . . . 2721 Melee 5343 | . . . . 124 . 624 . 2566 . 332 205 208 154 187 39 585 . . 319 Ramming 15 | . . 2 . . . . . . . . . . . . . 2 . . 11 Kinetic 1298 | . . . . . . 47 . 858 . 271 . . . . . 101 . 21 . Thermal 939 | . 123 403 . 131 . 242 . . . . . . . . . . . . 40 Explosive 4233 | . . . . . . 1032 . 182 . . . 1332 . . . . . . 1687 Electromagnetic 1191 | . 130 . . . . . . . . . 27 . . . . . . . 1034 Impact . | . . . . . . . . . . . . . . . . . . . . Slashing 5311 | . . . . 124 . 592 . 2566 . 332 205 208 154 187 39 585 . . 319 Piercing 32 | . . . . . . 32 . . . . . . . . . . . . . Highest Corruption 8 | . . . . . . . . . . 4 4 4 . . . . . . 8 Average Corruption 4 | . . . . . . . . . . 4 4 4 . . . . . . 5 Corruption Purged . | . . . . . . . . . . . . . . . . . . . . Corruption Blocked . | . . . . . . . . . . . . . . . . . . . . Effects 54 | . . . . . . . . . . 16 14 23 . . . . . . 1 Message Errors 10 | . . . . . . . . . . 3 3 3 . . . . . . 1 Matter Fused 18 | . . . . . . . . . . 6 4 8 . . . . . . . Heat Flow Errors 4 | . . . . . . . . . . 1 2 1 . . . . . . . Energy Discharges 7 | . . . . . . . . . . 4 2 1 . . . . . . . Parts Rejected 1 | . . . . . . . . . . . 1 . . . . . . . . Parts Fused 3 | . . . . . . . . . . 1 . 2 . . . . . . . Data Loss (minor) 8 | . . . . . . . . . . . 2 6 . . . . . . . Data Loss (major) 1 | . . . . . . . . . . . . 1 . . . . . . . Alerts 2 | . . . . . . . . . . 1 . 1 . . . . . . . Overload Shots 3 | . . . . . . . . . . . . . . . . . . . 3 Overflow Damage 599 | . . . . . . 58 . 235 . . 84 140 . . . . . . 82 Projectiles . | . . . . . . . . . . . . . . . . . . . . Explosions 168 | . . . . . . 1 . . . . . 107 . . . . . . 60 Melee 431 | . . . . . . 57 . 235 . . 84 33 . . . . . . 22 Knockbacks 9 | . . . . . . 2 . 7 . . . . . . . . . . . Impact . | . . . . . . . . . . . . . . . . . . . . Kinetic 8 | . . . . . . 1 . 7 . . . . . . . . . . . Secondary 1 | . . . . . . 1 . . . . . . . . . . . . . Self-Inflicted Damage 655 | . . . . . . 124 . 44 . . . 215 . . . . . . 272 Shots 17 | . . . . . . 5 . 2 . . . 6 . . . . . . 4 Rammed 6 | . . 1 . . . . . . . . . . . . . 1 . . 4 Targets Rammed 6 | . . 1 . . . . . . . . . . . . . 1 . . 4 Kicked . | . . . . . . . . . . . . . . . . . . . . Crushed . | . . . . . . . . . . . . . . . . . . . . Highest Temperature 341 | . 190 278 . 297 . 243 . 341 . 324 170 227 . . . 7 . . 328 Average Temperature 114 | . 95 113 . 116 . 78 . 125 . 150 101 68 . . . 4 . . 105 Received Heat Transfer 2254 | . 156 69 . 78 . 205 . 261 . 72 12 216 15 36 . 150 . 9 975 Effects 5 | . . . . . . . . . . 2 . . . . . . . . 3 Interference 5 | . . . . . . . . . . 2 . . . . . . . . 3 Siege Activations 1 | . . . . . . . . . . . . . . . . . . . 1 Total Turns 33 | . . . . . . . . . . . . . . . . . . . 33 Longest Duration 33 | . . . . . . . . . . . . . . . . . . . 33 Robots Corrupted 4 | . . . . . . . . . . . . . . . . . . . 4 Combat Hostiles . | . . . . . . . . . . . . . . . . . . . . Parts Fried 12 | . . . . . . . . . . . . . . . . . . . 12 Impact Corruptions . | . . . . . . . . . . . . . . . . . . . . Robots Melted . | . . . . . . . . . . . . . . . . . . . . Combat Hostiles . | . . . . . . . . . . . . . . . . . . . . Parts Melted 4 | . . 2 . . . 1 . . . 1 . . . . . . . . . Heat Transferred 1952 | . 274 851 . 333 . 444 . . . . . . . . . . . . 50 Parts Sabotaged 3 | . . . . . . . . . . . . . . . . . . . 3 Parts Stolen . | . . . . . . . . . . . . . . . . . . . . Parts Stripped . | . . . . . . . . . . . . . . . . . . . . Power Chain Reactions . | . . . . . . . . . . . . . . . . . . . . Alert | -11 -10 -10 -10 -9 -8 -8 -8 -8 -7 -7 -7 -7 -6 -6 -5 -5 -5 -5 -5 ------- Run | Yrd Mat Min Exi Min Mat Gar Mat Gar Fac Gar Fac Gar Fac Gar Fac Ext Cet Arc Hub Peak Influence 2015 | . 74 188 . 65 29 553 269 1051 567 660 442 816 539 411 530 696 940 500 2015 Initial 551 | . . 28 . . 25 18 269 174 551 396 336 211 428 36 215 259 388 376 43 Average 455 | . 44 61 . 30 27 306 269 611 559 495 328 706 339 197 362 516 813 243 1134 Maximum Alert Level 5 | . . . . . . 2 1 3 2 2 2 3 2 2 2 2 3 2 5 Low Security (%) 26 | 100 100 100 . 100 100 26 . 5 . . 9 . 10 63 . . . 55 23 Level 1 20 | . . . . . . 32 100 27 . 8 64 5 40 28 66 24 1 28 3 Level 2 31 | . . . . . . 40 . 27 100 91 26 22 49 7 33 75 12 16 4 Level 3 17 | . . . . . . . . 39 . . . 72 . . . . 86 . 9 Level 4 . | . . . . . . . . . . . . . . . . . . . 18 Level 5 . | . . . . . . . . . . . . . . . . . . . 12 High Security 1 | . . . . . . . . . . . . . . . . . . . 27 Max Security . | . . . . . . . . . . . . . . . . . . . . Squads Dispatched 18 | . . 1 . . . . . . . . 1 . . . . 1 1 . 14 Investigation 5 | . . 1 . . . . . . . . . . . . . . 1 . 3 Extermination 1 | . . . . . . . . . . . 1 . . . . . . . . Reinforcement 7 | . . . . . . . . . . . . . . . . . . . 7 Assault 5 | . . . . . . . . . . . . . . . . 1 . . 4 Garrison . | . . . . . . . . . . . . . . . . . . . . Intercept . | . . . . . . . . . . . . . . . . . . . . Searches Triggered . | . . . . . . . . . . . . . . . . . . . . Construction Impeded 1 | . . . . . . . . . . . . . . . . . . . 1 Haulers Reinforced . | . . . . . . . . . . . . . . . . . . . . Active Scanning Responses 4 | . . . . . . . . . . . . . . . . . 1 . 3 Cargo Convoy Interrupts . | . . . . . . . . . . . . . . . . . . . . Stealth | -11 -10 -10 -10 -9 -8 -8 -8 -8 -7 -7 -7 -7 -6 -6 -5 -5 -5 -5 -5 --------- Run | Yrd Mat Min Exi Min Mat Gar Mat Gar Fac Gar Fac Gar Fac Gar Fac Ext Cet Arc Hub Distress Signals 7 | . . . . . . . 1 . . . 1 . 1 . 1 1 2 . . Communications Jammed 196 | . . . . . . . . . . . . . 17 . . 80 71 . 28 Distress Signals 196 | . . . . . . . . . . . . . 17 . . 80 71 . 28 Times Spotted 274 | . 4 6 . 5 . 18 1 45 1 24 16 18 10 20 5 35 5 4 57 Peak Tracking Total 27 | . 2 2 . 2 . 4 2 5 1 7 3 7 2 6 1 8 4 2 27 Tactical Retreats 14 | . . 1 . 1 . . . 7 . 1 . . 1 . . 2 . . 1 Traps | -11 -10 -10 -10 -9 -8 -8 -8 -8 -7 -7 -7 -7 -6 -6 -5 -5 -5 -5 -5 ------- Run | Yrd Mat Min Exi Min Mat Gar Mat Gar Fac Gar Fac Gar Fac Gar Fac Ext Cet Arc Hub Traps Triggered 41 | . . . . . . 6 . 3 1 13 . 7 1 10 . . . . . Indirectly . | . . . . . . . . . . . . . . . . . . . . Trap Hack Attempts . | . . . . . . . . . . . . . . . . . . . . Triggered . | . . . . . . . . . . . . . . . . . . . . Disarmed . | . . . . . . . . . . . . . . . . . . . . Reprogrammed . | . . . . . . . . . . . . . . . . . . . . Reused . | . . . . . . . . . . . . . . . . . . . . Traps Extracted . | . . . . . . . . . . . . . . . . . . . . Installed . | . . . . . . . . . . . . . . . . . . . . Triggered . | . . . . . . . . . . . . . . . . . . . . Objects Rigged 2 | . . . . . . . . 1 . 1 . . . . . . . . . Exploded 2 | . . . . . . . . 1 . 1 . . . . . . . . . Machines | -11 -10 -10 -10 -9 -8 -8 -8 -8 -7 -7 -7 -7 -6 -6 -5 -5 -5 -5 -5 ---------- Run | Yrd Mat Min Exi Min Mat Gar Mat Gar Fac Gar Fac Gar Fac Gar Fac Ext Cet Arc Hub Machines Disabled 36 | . . 1 . . . 1 . 3 . 2 2 3 . 4 4 2 . 2 12 Max in Single Turn 5 | . . 1 . . . 1 . 1 . 1 2 1 . 1 . 1 . . 5 Garrison Relay 9 | . . . . . . . . 2 . 2 . 1 . 4 . . . . . Network Hub 2 | . . . . . . . . . . . . . . . . . . . 2 Machines Repaired . | . . . . . . . . . . . . . . . . . . . . Machines Dismantled 3 | . . . . . . . . . . . . . . . . 3 . . . Machines Sabotaged . | . . . . . . . . . . . . . . . . . . . . Overloaded Fab Kills . | . . . . . . . . . . . . . . . . . . . . Hacking | -11 -10 -10 -10 -9 -8 -8 -8 -8 -7 -7 -7 -7 -6 -6 -5 -5 -5 -5 -5 --------- Run | Yrd Mat Min Exi Min Mat Gar Mat Gar Fac Gar Fac Gar Fac Gar Fac Ext Cet Arc Hub Machines Accessed 57 | . 2 1 1 . 1 4 1 2 1 1 7 1 6 4 3 16 2 . 4 Terminals 46 | . 1 . . . . 4 . 2 . 1 4 1 4 4 3 16 2 . 4 Fabricators 1 | . . . . . . . . . . . 1 . . . . . . . . Repair Stations 2 | . 1 . . . . . . . . . . . 1 . . . . . . Recycling Units 1 | . . . . . . . . . . . 1 . . . . . . . . Scanalyzers . | . . . . . . . . . . . . . . . . . . . . Garrison Access 5 | . . . . . 1 . 1 . 1 . 1 . 1 . . . . . . Total Hacks 109 | . 3 1 1 . 1 5 1 4 1 1 15 2 16 4 5 34 4 . 11 Successful 56 | . 2 1 1 . 1 3 1 . 1 1 10 . 8 2 4 13 2 . 6 Failed 53 | . 1 . . . . 2 . 4 . . 5 2 8 2 1 21 2 . 5 Catastrophic 10 | . . . . . . 1 . . . . 1 . 1 1 . 4 1 . 1 Database Lockouts . | . . . . . . . . . . . . . . . . . . . . Manual 36 | . 2 . 1 . . . . . . . 5 . 6 . 3 8 3 . 8 Terminals 96 | . 2 . . . . 5 . 4 . 1 11 2 13 4 5 34 4 . 11 Fabricators 1 | . . . . . . . . . . . 1 . . . . . . . . Repair Stations 3 | . 1 . . . . . . . . . . . 2 . . . . . . Recycling Units 2 | . . . . . . . . . . . 2 . . . . . . . . Scanalyzers . | . . . . . . . . . . . . . . . . . . . . Garrison Access 5 | . . . . . 1 . 1 . 1 . 1 . 1 . . . . . . Terminal Hacks 41 | . 1 1 1 . . 3 . . . 1 6 . 5 2 2 13 2 . 4 Record 1 | . . . . . . . . . . . . . . . . . 1 . . Prototype ID Bank 2 | . 1 . . . . . . . . . . . . . 1 . . . . Open Door 12 | . . 1 . . . 1 . . . . . . . . 1 8 1 . . Branch Access Points 3 | . . . . . . . . . . . 1 . 1 . . 1 . . . Emergency Access Points 2 | . . . . . . 1 . . . 1 . . . . . . . . . Machine Index 1 | . . . . . . . . . . . . . . . . . . . 1 Terminal Index 1 | . . . . . . . . . . . . . 1 . . . . . . Garrison Index 1 | . . . . . . . . . . . 1 . . . . . . . . Unreport Threat 5 | . . . . . . . . . . . 1 . 2 . . 2 . . . Locate Traps 1 | . . . . . . . . . . . . . . . . 1 . . . Transport Status 1 | . . . . . . . . . . . 1 . . . . . . . . Hauler Manifests 1 | . . . . . . . . . . . 1 . . . . . . . . Zone Layout 6 | . . . . . . . . . . . 1 . 1 . . 1 . . 3 Garrison Registry 1 | . . . . . . 1 . . . . . . . . . . . . . Patrol Navigation 1 | . . . . . . . . . . . . . . 1 . . . . . Security Stations 1 | . . . . . . . . . . . . . . 1 . . . . . Derelict Proto ID Bank 1 | . . . 1 . . . . . . . . . . . . . . . . Fabricator Hacks 1 | . . . . . . . . . . . 1 . . . . . . . . Build 1 | . . . . . . . . . . . 1 . . . . . . . . Repair Station Hacks 1 | . . . . . . . . . . . . . 1 . . . . . . Scan Component 1 | . . . . . . . . . . . . . 1 . . . . . . Recycling Unit Hacks 1 | . . . . . . . . . . . 1 . . . . . . . . Report Inventory 1 | . . . . . . . . . . . 1 . . . . . . . . Scanalyzer . | . . . . . . . . . . . . . . . . . . . . Garrison Access Hacks 5 | . . . . . 1 . 1 . 1 . 1 . 1 . . . . . . Unlock Access 5 | . . . . . 1 . 1 . 1 . 1 . 1 . . . . . . Unauthorized Hacks 7 | . 1 . . . . . . . . . 1 . 1 . 2 . . . 2 Terminals 6 | . . . . . . . . . . . 1 . 1 . 2 . . . 2 Track 1 | . . . . . . . . . . . . . . . . . . . 1 Botnet 4 | . . . . . . . . . . . 1 . 1 . 2 . . . . Disrupt 1 | . . . . . . . . . . . . . . . . . . . 1 Fabricators . | . . . . . . . . . . . . . . . . . . . . Repair Stations 1 | . 1 . . . . . . . . . . . . . . . . . . Mechanics 1 | . 1 . . . . . . . . . . . . . . . . . . Recycling Units . | . . . . . . . . . . . . . . . . . . . . Scanalyzers . | . . . . . . . . . . . . . . . . . . . . Garrison Access . | . . . . . . . . . . . . . . . . . . . . Data Cores Recovered 1 | . . . . . . . . . . . . . . . . 1 . . . Used . | . . . . . . . . . . . . . . . . . . . . Hacking Detections 42 | . 1 . . . . 3 . 2 . . 7 1 5 3 2 13 1 . 4 Full Trace Events 1 | . . . . . . . . 1 . . . . . . . . . . . Feedback Events . | . . . . . . . . . . . . . . . . . . . . Feedback Blocked . | . . . . . . . . . . . . . . . . . . . . Robot Schematics Acquired . | . . . . . . . . . . . . . . . . . . . . Robots Built 4 | . . . . . . . . . . . 4 . . . . . . . . Authchips . | . . . . . . . . . . . . . . . . . . . . Time 67 | . . . . . . . . . . . 67 . . . . . . . . Total Robot Build Rating 16 | . . . . . . . . . . . 16 . . . . . . . . Part Schematics Acquired . | . . . . . . . . . . . . . . . . . . . . Parts Built . | . . . . . . . . . . . . . . . . . . . . Authchips . | . . . . . . . . . . . . . . . . . . . . Time . | . . . . . . . . . . . . . . . . . . . . Total Part Build Rating . | . . . . . . . . . . . . . . . . . . . . Parts Repaired . | . . . . . . . . . . . . . . . . . . . . Time . | . . . . . . . . . . . . . . . . . . . . Parts Recycled . | . . . . . . . . . . . . . . . . . . . . Recycled Matter . | . . . . . . . . . . . . . . . . . . . . Retrieved Matter . | . . . . . . . . . . . . . . . . . . . . Retrieved Components . | . . . . . . . . . . . . . . . . . . . . Parts Scanalyzed . | . . . . . . . . . . . . . . . . . . . . Part Schematics Acquired . | . . . . . . . . . . . . . . . . . . . . Parts Damaged . | . . . . . . . . . . . . . . . . . . . . Bothacking | -11 -10 -10 -10 -9 -8 -8 -8 -8 -7 -7 -7 -7 -6 -6 -5 -5 -5 -5 -5 ------------ Run | Yrd Mat Min Exi Min Mat Gar Mat Gar Fac Gar Fac Gar Fac Gar Fac Ext Cet Arc Hub Used RIF Installer 5 | . . . . . . 1 . 1 . 1 . 1 . 1 . . . . . Coupler Efficiency 1 | . . . . . . . . . . . . . . 1 . . . . . Hotswap 1 | . . . . . . . . . . . . 1 . . . . . . . Signal Jammer 1 | . . . . . . . . 1 . . . . . . . . . . . Robot Detection 1 | . . . . . . . . . . 1 . . . . . . . . . Robots Hacked 77 | . . . . . . . . 14 1 13 9 5 5 13 2 3 . 4 8 Non-combat 18 | . . . . . . . . . 1 . 7 . 2 . . 1 . 4 3 Combat 59 | . . . . . . . . 14 . 13 2 5 3 13 2 2 . . 5 Robot Hacks Applied 84 | . . . . . . . . 14 2 13 10 5 6 14 2 3 . 7 8 parse_system 2 | . . . . . . . . . 1 . 1 . . . . . . . . no_distress 1 | . . . . . . . . . . . 1 . . . . . . . . map_walls 3 | . . . . . . . . . . . 2 . . . . 1 . . . drop_inventory 1 | . . . . . . . . . . . 1 . . . . . . . . find_recycling 1 | . . . . . . . . . . . 1 . . . . . . . . purge_threat 4 | . . . . . . . . . . . . . 1 . . . . 3 . map_route 3 | . . . . . . . . . . . 1 . . . . . . . 2 find_garrison 2 | . . . . . . . . . . . . . 1 . 1 . . . . scatter_targeting 1 | . . . . . . . . 1 . . . . . . . . . . . spike_heat 1 | . . . . . . . . . . . . 1 . . . . . . . amplify_resonance 4 | . . . . . . . . 2 . 1 . 1 . . . . . . . disable_weapons 1 | . . . . . . . . 1 . . . . . . . . . . . reboot_system 1 | . . . . . . . . . . 1 . . . . . . . . . overwrite_iff 13 | . . . . . . . . 3 . 4 . . 1 4 . 1 . . . streamctrl_high 1 | . . . . . . . . . . . . . . . . . . . 1 formatsys_low 5 | . . . . . . . . . . . . . . . . . . 4 1 formatsys_high 40 | . . . . . . . . 7 1 7 3 3 3 10 1 1 . . 4 Relay Couplers Released 43 | . . . . . . . . 12 . 8 . 5 . 18 . . . . . Machine Destruction 39 | . . . . . . . . 8 . 8 . 5 . 18 . . . . . Programmers 4 | . . . . . . . . 4 . . . . . . . . . . . Attached 29 | . . . . . . . . 7 1 7 3 2 3 2 1 1 . . 2 Fabnet Peak Effective % . | . . . . . . . . . . . . . . . . . . . . Robots Rewired 19 | . . . . . . . . . . . . 3 . . . 16 . . . Allies Hacked . | . . . . . . . . . . . . . . . . . . . . Hacks Repelled . | . . . . . . . . . . . . . . . . . . . . Allies | -11 -10 -10 -10 -9 -8 -8 -8 -8 -7 -7 -7 -7 -6 -6 -5 -5 -5 -5 -5 -------- Run | Yrd Mat Min Exi Min Mat Gar Mat Gar Fac Gar Fac Gar Fac Gar Fac Ext Cet Arc Hub Total Allies 107 | . . . . . . 1 . 10 1 11 7 6 4 15 1 36 5 4 6 Largest Group 27 | . . . . . . 1 . 3 1 3 7 4 6 8 9 27 20 14 16 Highest-Rated Group 1082 | . . . . . . 31 . 99 19 65 135 96 161 428 457 938 1082 965 806 Highest-Rated Ally 159 | . . . . . . 31 . 85 19 32 32 32 47 95 95 159 159 159 96 Total Orders 59 | . . . . . . . . 2 . 9 7 . . 26 . 15 . . . STAY 34 | . . . . . . . . 1 . 4 4 . . 13 . 12 . . . ROAM 1 | . . . . . . . . . . 1 . . . . . . . . . FOLLOW 24 | . . . . . . . . 1 . 4 3 . . 13 . 3 . . . Ally Attacks 616 | . . . . . . 11 . 46 . 51 56 4 20 34 22 184 80 23 85 Total Damage 17840 | . . . . . . 103 . 897 . 692 781 127 684 921 725 5011 3491 996 3412 Kills 131 | . . . . . . . . 7 . 6 9 1 8 6 4 35 20 5 30 Allies Corrupted 4 | . . . . . . . . . . . . . . . . . . . 4 Allies Melted 2 | . . . . . . . . . . 1 . . . . . 1 . . . Intel | -11 -10 -10 -10 -9 -8 -8 -8 -8 -7 -7 -7 -7 -6 -6 -5 -5 -5 -5 -5 ------- Run | Yrd Mat Min Exi Min Mat Gar Mat Gar Fac Gar Fac Gar Fac Gar Fac Ext Cet Arc Hub Robot Analysis Total . | . . . . . . . . . . . . . . . . . . . . Derelict Logs Recovered 1 | . . 1 . . . . . . . . . . . . . . . . . Drone Launches . | . . . . . . . . . . . . . . . . . . . . Drone Recoveries . | . . . . . . . . . . . . . . . . . . . . Exploration | -11 -10 -10 -10 -9 -8 -8 -8 -8 -7 -7 -7 -7 -6 -6 -5 -5 -5 -5 -5 ------------- Run | Yrd Mat Min Exi Min Mat Gar Mat Gar Fac Gar Fac Gar Fac Gar Fac Ext Cet Arc Hub Turns Passed 11958 | 74 276 1030 1059 199 55 876 23 1982 118 848 584 1049 445 965 133 1133 397 140 572 Spaces Moved 7301 | 50 132 567 655 88 56 626 17 1164 87 524 435 798 305 593 87 528 239 72 278 Core 15 | 12 . . . . . . . . . . . . . . . . . . 3 Treads 2472 | . 6 567 655 47 . 10 . 181 . . . . . . . 420 239 72 275 Legs 164 | 38 126 . . . . . . . . . . . . . . . . . . Wheels 4650 | . . . . 41 56 616 17 983 87 524 435 798 305 593 87 108 . . . Hover . | . . . . . . . . . . . . . . . . . . . . Flight . | . . . . . . . . . . . . . . . . . . . . Fastest Speed 50 | 50 120 160 160 105 80 80 120 105 105 105 93 108 105 105 130 130 160 160 50 Average Speed 129 | 114 144 160 160 134 80 99 120 129 111 105 106 108 107 125 130 153 160 160 158 Slowest Speed 245 | 150 190 160 160 160 80 232 120 245 120 120 108 108 108 130 130 160 240 160 160 Overloaded Moves . | . . . . . . . . . . . . . . . . . . . . Propulsion Burnouts . | . . . . . . . . . . . . . . . . . . . . Robots Hopped . | . . . . . . . . . . . . . . . . . . . . Cave-ins Triggered . | . . . . . . . . . . . . . . . . . . . . Exploration Rate (%) 45 | 4 30 94 92 11 6 78 4 70 4 57 17 70 11 72 4 72 81 77 50 Regions Visited 19 Branch Regions 7 Pre-discovered Areas . | . . . . . . . . . . . . . . . . . . . . Known Exits Taken 9 | . 1 . . . 1 . 1 . 1 . 1 . 1 . . 1 1 1 . Unknown Exits Taken 5 | 1 . 1 1 1 . . . . . . . . . . 1 . . . . Scrap Searched 2 | . . 2 . . . . . . . . . . . . . . . . . Spaces Dug 118 | . . . . . . 2 . 4 1 1 7 31 3 . . 14 . . 55 Terrain Destroyed 813 | . . . . . . 149 . 38 1 3 7 176 3 . . 14 . . 422 Melee 32 | . . . . . . . . 4 1 1 7 . 3 . . 14 . . 2 Projectile 13 | . . . . . . 2 . 7 . 2 . . . . . . . . 2 AOE 768 | . . . . . . 147 . 27 . . . 176 . . . . . . 418 Terrain Rammed . | . . . . . . . . . . . . . . . . . . . . Walls Destroyed . | . . . . . . . . . . . . . . . . . . . . Machines Disabled . | . . . . . . . . . . . . . . . . . . . . Actions | -11 -10 -10 -10 -9 -8 -8 -8 -8 -7 -7 -7 -7 -6 -6 -5 -5 -5 -5 -5 --------- Run | Yrd Mat Min Exi Min Mat Gar Mat Gar Fac Gar Fac Gar Fac Gar Fac Ext Cet Arc Hub Total 9292 | 63 193 656 669 156 65 814 19 1512 103 772 533 956 410 796 104 764 255 89 363 Wait 582 | 1 17 45 . 47 . 34 . 103 . 58 39 43 55 57 9 57 7 3 7 Move 7277 | 49 131 566 654 87 55 624 16 1162 86 522 434 796 304 591 86 527 238 71 278 Hop . | . . . . . . . . . . . . . . . . . . . . Pick Up 172 | 6 13 10 6 4 3 21 1 31 3 15 8 4 9 19 2 13 1 1 2 Fast Attach 30 | 6 3 . . . 1 2 . 2 1 2 2 1 . 2 . 5 2 . 1 Attach 64 | . 2 . 2 1 4 5 . 16 2 5 5 2 3 3 2 4 . . 8 Detach 5 | . . . . . 1 . . 1 . . . . . . . 2 1 . . Swap 149 | 1 7 6 1 5 1 14 1 39 3 15 8 10 4 3 . 19 1 2 9 Drop 158 | . 5 10 6 4 . 20 1 29 2 16 7 5 5 13 . 22 5 . 8 Fire 366 | . 15 18 . 5 . 40 . 68 5 37 18 25 12 23 4 48 . 12 36 Melee 169 | . . . . 3 . 20 . 49 1 18 11 6 6 9 1 35 . . 10 Ram . | . . . . . . . . . . . . . . . . . . . . Kick . | . . . . . . . . . . . . . . . . . . . . Crush 6 | . . 1 . . . . . . . . . . . . . 1 . . 4 Escape Stasis 240 | . . . . . . 34 . 8 . 82 . 36 8 72 . . . . . Rewire 47 | . . . . . . . . 3 . 1 1 28 4 4 . 6 . . . Trap 2 | . . . . . . . . 1 . 1 . . . . . . . . . Miscellaneous 25 | . . . . . . . . . . . . . . . . 25 . . . Route ------- -11/Scrapyard -10/Materials -10/Mines (discovered 2 exits: [*Mat] / *Exi) -10/Exiles (discovered 2 exits: [*Min x2]) -9/Mines -8/Materials -8/Garrison (discovered 3 exits: *Mat x3) -8/Materials -8/Garrison (discovered 3 exits: *Fac x3) -7/Factory -7/Garrison (discovered 2 exits: *Fac x2) -7/Factory (discovered 4 exits: *Fac / *Low x2 / Gar) -7/Garrison (discovered 4 exits: *Fac x3 / [*Fac]) -6/Factory (discovered 3 exits: Low x2 / Gar) -6/Garrison (discovered 3 exits: *Fac x3) -5/Factory -5/Extension (discovered 2 exits: *Fac / *Cet) -5/Cetus (discovered 2 exits: *Fac / *Arc) -5/Archives (discovered 2 exits: *Fac / *Hub) -5/Hub_04(d) (discovered 2 exits: *Fac x2) History --------- Turn | Location | Event 14 | -11/Scrapyard | Discovered new exit (range 16) 75 | -11/Scrapyard | Entered Materials 221 | -10/Materials | Discovered new exit (range 18) 314 | -10/Materials | Build established: Mutant 318 | -10/Materials | Identified exit to Mines 351 | -10/Materials | Entered Mines 407 | -10/Mines | Assembled infested the area 551 | -10/Mines | Met a Derelict shopkeep closing up shop 866 | -10/Mines | Discovered new exit (range 15) 951 | -10/Mines | Learned Materials stockpile data 1062 | -10/Mines | Discovered new exit (range 5) 1381 | -10/Mines | Entered Exiles 1413 | -10/Exiles | Discovered new exit (range 14) 1447 | -10/Exiles | Met 8R-AWN 1476 | -10/Exiles | Met EX-HEX 1561 | -10/Exiles | Met EX-DEC 1589 | -10/Exiles | Visited The Gauntlet 1882 | -10/Exiles | Discovered new exit (range 10) 1999 | -10/Exiles | Met EX-BIN 2031 | -10/Exiles | Aligned with FarCom system 2033 | -10/Exiles | Given EX-Vault access code 2079 | -10/Exiles | Opened EX-Vault 2092 | -10/Exiles | Found PSU Rigger 2095 | -10/Exiles | Found Longsword +1 2099 | -10/Exiles | Found Chronowheel 2133 | -10/Exiles | Warned to stay clear of 0b10 Research branches 2440 | -10/Exiles | Stole three prototypes: PSU Rigger, Chronowheel, Longsword +1 2440 | -10/Exiles | Entered Mines 2467 | -9/Mines | Discovered new exit (range 5) 2494 | -9/Mines | Excavation squad dispatched 2494 | -9/Mines | A large section of the Mines collapsed 2639 | -9/Mines | Entered Materials 2639 | -8/Materials | Evolved 4 slots: Propulsion x2, Utility x2 2658 | -8/Materials | Identified exit to Garrison 2694 | -8/Materials | Entered Garrison 2738 | -8/Garrison | Triggered checkpoint 2776 | -8/Garrison | Rescued a captive Derelict 2834 | -8/Garrison | Triggered checkpoint 2902 | -8/Garrison | Triggered checkpoint 3003 | -8/Garrison | Build established: Scavenger-Mutant 3059 | -8/Garrison | Discovered new exit (range 12) 3114 | -8/Garrison | Discovered new exit (range 18) 3114 | -8/Garrison | Discovered new exit (range 58) 3114 | -8/Garrison | Discovered new exit (range 83) 3118 | -8/Garrison | Triggered checkpoint 3155 | -8/Garrison | Installed Relay Interface Framework 3192 | -8/Garrison | Triggered checkpoint 3248 | -8/Garrison | Lost 3 parts (1p1n1u) 3372 | -8/Garrison | Triggered checkpoint 3570 | -8/Garrison | Entered Materials 3591 | -8/Materials | Identified exit to Garrison 3593 | -8/Materials | Entered Garrison 3615 | -8/Garrison | Triggered checkpoint 3780 | -8/Garrison | Build established: Bothacker-Mutant 3833 | -8/Garrison | Garrison Relay disabled 3899 | -8/Garrison | Triggered checkpoint 3950 | -8/Garrison | Spotted B-75 Beast 3950 | -8/Garrison | Spotted B-75 Beast 4157 | -8/Garrison | Triggered checkpoint 4158 | -8/Garrison | Triggered checkpoint 4187 | -8/Garrison | Triggered checkpoint 4276 | -8/Garrison | Assimilated Beast 3a with formatsys_high 4291 | -8/Garrison | Destroyed B-75 Beast 4427 | -8/Garrison | Expanded RIF knowledge: Signal Jamming 4463 | -8/Garrison | Triggered checkpoint 4542 | -8/Garrison | Lost 3 allies 4643 | -8/Garrison | Discovered new exit (range 11) 4889 | -8/Garrison | Triggered checkpoint 4939 | -8/Garrison | Discovered new exit (range 15) 5117 | -8/Garrison | Discovered new exit (range 15) 5385 | -8/Garrison | Triggered checkpoint 5507 | -8/Garrison | Garrison Relay disabled 5575 | -8/Garrison | Entered Factory 5575 | -7/Factory | Evolved 2 slots: Utility x2 5577 | -7/Factory | FarCom data flow suspended 5653 | -7/Factory | Identified exit to Garrison 5693 | -7/Factory | Entered Garrison 5693 | -7/Garrison | Accompanied by 1 ally 5711 | -7/Garrison | Triggered checkpoint 5711 | -7/Garrison | Triggered checkpoint 5725 | -7/Garrison | Triggered checkpoint 5797 | -7/Garrison | Garrison Relay disabled 6039 | -7/Garrison | Triggered checkpoint 6110 | -7/Garrison | Found Imp. Powered Armor 6112 | -7/Garrison | Found Imp. Powered Armor 6114 | -7/Garrison | Found Imp. Powered Armor 6116 | -7/Garrison | Found Imp. Powered Armor 6139 | -7/Garrison | Expanded RIF knowledge: Robot Detection 6202 | -7/Garrison | Discovered new exit (range 8) 6289 | -7/Garrison | Triggered checkpoint 6393 | -7/Garrison | Assembled breached garrison interior 6447 | -7/Garrison | Lost 3 allies 6469 | -7/Garrison | Garrison Relay disabled 6526 | -7/Garrison | Discovered new exit (range 10) 6541 | -7/Garrison | Entered Factory 6700 | -7/Factory | Discovered new exit (range 13) 6712 | -7/Factory | Fabricated S-27 Virus? 6727 | -7/Factory | Identified exit to Factory 6903 | -7/Factory | Identified exit to Lower Caves 7068 | -7/Factory | Lost 4 allies 7124 | -7/Factory | Identified exit to Garrison 7125 | -7/Factory | Entered Garrison 7171 | -7/Garrison | Triggered checkpoint 7177 | -7/Garrison | Triggered checkpoint 7202 | -7/Garrison | Destroyed 7 combat bots 7233 | -7/Garrison | Triggered checkpoint 7266 | -7/Garrison | Garrison Relay disabled 7399 | -7/Garrison | Triggered checkpoint 7539 | -7/Garrison | Triggered checkpoint 7603 | -7/Garrison | Triggered checkpoint 7629 | -7/Garrison | Discovered new exit (range 5) 7698 | -7/Garrison | Discovered exit to Factory (range 11) 7841 | -7/Garrison | Spotted B-75 Beast 7872 | -7/Garrison | Lost 3 allies 7896 | -7/Garrison | Discovered exit to Factory (range 8) 7965 | -7/Garrison | Expanded RIF knowledge: Hotswap 8149 | -7/Garrison | Discovered exit to Factory (range 8) 8174 | -7/Garrison | Entered Factory 8174 | -6/Factory | Accompanied by 3 allies 8174 | -6/Factory | Evolved 2 slots: Utility x2 8271 | -6/Factory | Build established: Botlord-Mutant 8318 | -6/Factory | Identified exit to Lower Caves 8561 | -6/Factory | Identified exit to Garrison 8609 | -6/Factory | Lost 3 allies 8619 | -6/Factory | Entered Garrison 8619 | -6/Garrison | Accompanied by 1 ally 8645 | -6/Garrison | Triggered checkpoint 8683 | -6/Garrison | Garrison Relay disabled 8759 | -6/Garrison | Triggered checkpoint 8781 | -6/Garrison | Triggered checkpoint 8785 | -6/Garrison | Triggered checkpoint 8828 | -6/Garrison | Lost 6 allies 8864 | -6/Garrison | Discovered new exit (range 10) 8963 | -6/Garrison | Triggered checkpoint 8982 | -6/Garrison | Garrison Relay disabled 9175 | -6/Garrison | Expanded RIF knowledge: Coupler Efficiency 9216 | -6/Garrison | Discovered new exit (range 11) 9227 | -6/Garrison | Triggered checkpoint 9249 | -6/Garrison | Garrison Relay disabled 9349 | -6/Garrison | Triggered checkpoint 9403 | -6/Garrison | Found embedded Infiltrators 9410 | -6/Garrison | Discovered new exit (range 12) 9461 | -6/Garrison | Triggered checkpoint 9503 | -6/Garrison | Learned Factory security intel 9508 | -6/Garrison | Garrison Relay disabled 9584 | -6/Garrison | Entered Factory 9584 | -5/Factory | Accompanied by 8 allies 9584 | -5/Factory | Evolved 2 slots: Utility x2 9699 | -5/Factory | Discovered new exit (range 10) 9717 | -5/Factory | Entered Extension 9717 | -5/Extension | Accompanied by 9 allies 9811 | -5/Extension | Rescued a captive Derelict 9811 | -5/Extension | Rescued a captive Derelict 9903 | -5/Extension | Lost 3 allies 9948 | -5/Extension | Rescued a captive Derelict 9954 | -5/Extension | Rescued a captive Derelict 9982 | -5/Extension | Rescued a captive Derelict 9983 | -5/Extension | Rescued a captive Derelict 10040 | -5/Extension | Rescued a captive Derelict 10049 | -5/Extension | Rescued a captive Derelict 10182 | -5/Extension | Rescued a captive Derelict 10183 | -5/Extension | Rescued a captive Derelict 10214 | -5/Extension | Spotted B-75 Beast 10240 | -5/Extension | Found Prototype Device 10241 | -5/Extension | Spotted B-75 Beast 10248 | -5/Extension | Allies destroyed B-75 Beast 10251 | -5/Extension | Allies destroyed B-75 Beast 10269 | -5/Extension | Lost 6 allies 10272 | -5/Extension | Identified Active Sensor Suite 10333 | -5/Extension | Identified exit to Cetus 10442 | -5/Extension | Rescued a captive Derelict 10507 | -5/Extension | Rescued a captive Derelict 10515 | -5/Extension | Build established: Botlord-Assassin 10596 | -5/Extension | Rescued a captive Derelict 10596 | -5/Extension | Rescued a captive Derelict 10617 | -5/Extension | First assault squad dispatched 10625 | -5/Extension | Rescued a captive Derelict 10626 | -5/Extension | Rescued a captive Derelict 10695 | -5/Extension | Rescued A7 10707 | -5/Extension | Lost 7 allies 10764 | -5/Extension | Rescued a captive Derelict 10791 | -5/Extension | Discovered new exit (range 10) 10850 | -5/Extension | Entered Cetus 10850 | -5/Cetus | Accompanied by 20 allies (A7) 10855 | -5/Cetus | Acquired a Cetus Manufacturing Module code from A7 10865 | -5/Cetus | Spotted Cetus Guard 10866 | -5/Cetus | Spotted Cetus Guard 10868 | -5/Cetus | Spotted Cetus Guard 10878 | -5/Cetus | Allies destroyed Cetus Guard 10882 | -5/Cetus | Allies destroyed Cetus Guard 10884 | -5/Cetus | Allies destroyed Cetus Guard 10937 | -5/Cetus | Lost 4 allies 10973 | -5/Cetus | Started Cetus Manufacturing Module 10984 | -5/Cetus | Escorted A7 to Cetus Mainframe 10998 | -5/Cetus | Manufactured an Enhanced Grunt 11023 | -5/Cetus | Manufactured an Enhanced Grunt 11040 | -5/Cetus | Discovered new exit (range 15) 11048 | -5/Cetus | Manufactured an Enhanced Grunt 11073 | -5/Cetus | Manufactured an Enhanced Grunt 11098 | -5/Cetus | Manufactured an Enhanced Grunt 11104 | -5/Cetus | Identified exit to Archives 11147 | -5/Cetus | Discovered new exit (range 15) 11159 | -5/Cetus | Met Revision 17 11175 | -5/Cetus | Identified exit to Factory 11247 | -5/Cetus | Entered Archives 11247 | -5/Archives | Accompanied by 14 allies (A7) 11252 | -5/Archives | Received a hacking code to weaken MAIN.C 11280 | -5/Archives | Unable to access archive contents 11298 | -5/Archives | Lost 5 allies 11307 | -5/Archives | Discovered new exit (range 14) 11337 | -5/Archives | Discovered exit to Factory (range 16) 11352 | -5/Archives | Unable to access archive contents 11381 | -5/Archives | Identified exit to Hub_04(d) 11387 | -5/Archives | Entered Hub_04(d) 11387 | -5/Hub_04(d) | Accompanied by 12 allies 11571 | -5/Hub_04(d) | Network Hub disabled 11592 | -5/Hub_04(d) | Discovered exit to Factory (range 16) 11597 | -5/Hub_04(d) | Murdered 3 allies 11604 | -5/Hub_04(d) | Lost 6 allies 11655 | -5/Hub_04(d) | Discovered exit to Factory (range 13) 11804 | -5/Hub_04(d) | High security lockdown imminent 11858 | -5/Hub_04(d) | Spotted Lightning 11859 | -5/Hub_04(d) | Spotted Lightning 11862 | -5/Hub_04(d) | Spotted Lightning 11881 | -5/Hub_04(d) | Destroyed Lightning 11884 | -5/Hub_04(d) | High security lockdown engaged 11884 | -5/Hub_04(d) | Lost 3 allies 11887 | -5/Hub_04(d) | Network Hub disabled 11909 | -5/Hub_04(d) | Destroyed Lightning 11947 | -5/Hub_04(d) | Activated Chronowheel 11956 | -5/Hub_04(d) | Core integrity fell below 50% 11959 | -5/Hub_04(d) | Core integrity fell below 20% 11959 | -5/Hub_04(d) | Destroyed by G-67 Veteran with Plasma Rifle Last Messages --------------- 11955_ W-25 Informer distress signal jammed. 11955_ Critical hit (Burn: +37). 11955_ Penetrated by Slug. 11956_ W-25 Informer distress signal jammed. 11956_ Chronowheel destroyed. 11956_ Spacetime feels normal again. 11956_ I-47 Archangel distress signal jammed. 11956_ Dropped Hcp. Storage Unit. 11957_ W-25 Informer distress signal jammed. 11957_ Penetrated by Slug. 11958_ Relay Coupler [NC] destroyed. 11958_ G-50 Soldier knocked back. 11958_ Dropped Huge Storage Unit. 11958_ Penetrated by Slug. 11958_ Acquired 7 matter. 11959_ G-50 Soldier suffers critical hit (Burn). 11959_ Relay Coupler [Specialist] destroyed. 11959_ Relay Coupler [Swarmer] destroyed. 11959_ Slug penetrates Wall. 11959_ Relay Coupler [Swarmer] destroyed. Map ----- +----------------------------------------------------+ | + ##?????# #?# #???????????????????????? | | # "#######+### #???????????????????????? | | # # ^ ## #???????????????????????? | | # # ^ !## #???????????????????????? | | # #! ^ ^ ## #???????????????????????? | | # # ^ ## #???????????????????????? | | # " " " " ## #???????????????????????? | | " " "^" ## ##??????????????????????? | | # " " " " # #??????????????????????? | | ### ### # # #??????????????????????? | | ?# ##"####### #??????????????"""?"""?" | | # # ###"####### ##??????????????????????? | | # # # ### # #########???????"""?"""?" | | # + T""""!+ ^+??????????? | | ## # # "%" #*##########??????????????? | | " ""####### #???????????????????????? | | "######?#w#????????#####??????????? | | "# ###/########## ??????????? | | "" "#[ # !* ; """?????????? | | ## # !"# ] /=% # ?????????? | | ##?# ## ## # x ; """?????????? | | ???# ## ### ## # ??????????? | | ????# ## #?# ## x # """?????????? | | ??### ## / #?# ## [Y= * # ??????????? | | ?? # ## " !=!#?# ##| =Y<= % # """?????????? | | """ # ##"%=%!*### #![ @!H%%* # ??????????? | | ?? + ##+#####"#g g#g=! Y[=% ;###???????????? | | T" # ""b[gg| Y =% #### ??????????? | | "" # ^^ lbl% g% = ; ## ??????????? | | ????###### ##### g #g % %% ;####??????????? | | ????##???# ######+###;#+#######+###?????????????? | | ???? ##### # # % %##?????????????? | | ???? # """ "" g T # ! #######???###### | | ???? # g # !%*# ##### ! | | ???? ######## """ """ # ! # "" *%[ | | ????### # # + T *![=%<= | | ???? # "" # """ """ # """" # [%**[ | | ???? # """# + """" # ####=%! | | ???? # T"# """ """ # """" ## ##?#####+## | | ???? # """# # """" ## #??# | | ???? # "" # """ """ ########### #### | | ???? # + #?????????# + " " " | | ???? # """ # #?????????# #### " " " | | ????### #####+####"+#############+##### " " " | | ???#######+###### # ## # | | ???? # """" """" ## """" + | | ???? + """" """" ## """" # | | ???" " T # """" """" ## """" #######+ | | ???" " # """" """" ## """" #??????? | | ???" " # ## #????##? | +----------------------------------------------------+ Best States ------------- Heat Dissipation 40 Energy Generation 25 Energy Capacity 350 Matter Stores 300 Matter Capacity 300 Sight Range 20 Robot Scan Range 20 Terrain Scan Density 10 Armor Coverage 2050 Evasion (%) 55 Recoil Reduction 4 Kinecelleration 30 Offensive Hacking 14 Defensive Hacking 10 Relay Coupler Types 6 Relay Coupler Value 117 Item Schematics ----------------- None Robot Schematics ------------------ None Fabricated ------------ S-27 Virus | x4 | -7/Factory | Preloaded Alien Tech Used ----------------- None Achievements -------------- None Challenges ------------ None Game ------ Seed SlugSpliceAxe Manual? 0 Play Time 03:37:34 Cumulative 194.5 hours Start 2024.04.24 @ 11:56:20 End 2024.04.24 @ 23:25:41 Sessions 3 Manual Loads 0 Difficulty Rogue Special Mode None Game No. 55 Rogue 55 Adventurer 0 Explorer 0 Win Type - Total 14 Types 8/2/2/1/1/0/0/0/0 Lore% 48 Gallery% 71 Achievement% 64 Wizard Run 0 Options --------- Layout 1 ASCII 0 Keyboard 0 Movement Numpad Keybinds 0 Fullscreen 1 Font 24/Smallcaps Map View 50x35 Zoom Use 0% Tactical HUD 1 Map Filters NONE Filters NONE Steam 1 RUN: dddc6bb3-d31d-459b-abaa-fc6719d65a6e